bitfinex-derivatives/quotes_SOLF0:USTF0_20250212
["timestamp","ask_amount","ask_price","bid_price","bid_amount"]
[1739403457005,0.03314783,196.42,196.38,0.03331013]
[1739403458109,0.03314783,196.42,196.41,5.0906]
[1739403459410,0.03314783,196.42,196.39,5.0911]
[1739403459607,0.03314783,196.42,196.38,0.03331013]
[1739403460008,5.0908,196.41,196.38,0.03331013]
[1739403460207,0.03314783,196.42,196.38,0.03331013]
[1739403460509,5.0908,196.41,196.38,0.03331013]
[1739403461108,5.0909,196.4,196.38,0.03331013]
[1739403466309,19.0788699,196.39,196.38,0.03331013]
[1739403478817,13.9876699,196.39,196.3,5.0935]
[1739403479025,5.0926,196.34,196.3,5.0935]
[1739403479622,5.0926,196.34,196.27,4.7509]
[1739403479623,8.97185022,196.33,196.27,13.72275022]
[1739403479823,5.093,196.32,196.29,5.0936]
[1739403480018,0.03428786,196.32,196.28,0.03861586]
[1739403480322,0.03428786,196.32,196.31,5.0932]
[1739403480818,0.03428786,196.32,196.31,14.06505022]
[1739403481213,8.97185022,196.39,196.31,8.97185022]
[1739403481423,8.97185022,196.41,196.33,8.97185022]
[1739403481722,14.00776536,196.44,196.31,14.00776536]
[1739403482021,5.0908,196.41,196.38,5.0914]
[1739403482218,14.00776536,196.44,196.31,14.00776536]
[1739403482424,0.03312296,196.41,196.38,0.03568271]
[1739403482722,14.04088832,196.41,196.38,0.03568271]
[1739403482921,5.0912,196.39,196.38,8.271e-05]
[1739403483123,14.04088832,196.41,196.27,4.7509]
[1739403483422,14.00776536,196.37,196.27,4.7509]
[1739403483920,14.00776536,196.37,196.29,5.0936]
[1739403484116,14.00776536,196.37,196.27,4.7509]
[1739403484320,0.03395042,196.35,196.31,0.03720843]
[1739403485421,5.12635042,196.35,196.31,5.13040843]
[1739403486125,0.03395042,196.35,196.31,0.03720843]
[1739403486323,0.03395042,196.35,196.32,5.0928]
[1739403486623,0.03395042,196.35,196.31,0.03720843]
[1739403486822,5.12615042,196.35,196.31,5.13020843]
[1739403487023,0.03395042,196.35,196.31,0.03720843]
[1739403487324,14.00776536,196.34,196.31,0.03720843]
[1739403487725,0.03395042,196.35,196.31,0.03720843]
[1739403488229,0.03395042,196.35,196.31,5.13020843]
[1739403489327,0.03395042,196.35,196.32,5.0929]
[1739403489528,0.03395042,196.35,196.31,0.03720843]
[1739403490128,0.03395042,196.35,196.33,5.0925]
[1739403491131,0.03395042,196.35,196.31,0.03720843]
[1739403491325,0.03395042,196.35,196.32,5.0929]
[1739403491925,0.03395042,196.35,196.31,0.03720843]
[1739403493826,5.0927,196.33,196.31,0.03720843]
[1739403494328,0.03395042,196.35,196.31,0.03720843]
[1739403494529,5.0925,196.34,196.31,5.13020843]
[1739403495131,5.093,196.32,196.31,0.03720843]
[1739403499336,5.0943,196.28,196.23,5.0953]
[1739403499732,14.00776536,196.29,196.22,8.248]
[1739403499932,5.0945,196.27,196.22,8.248]
[1739403500436,0.03605535,196.26,196.23,0.03748875]
[1739403500734,0.03605535,196.26,196.24,5.095]
[1739403501236,0.03605535,196.26,196.23,0.03748875]
[1739403501435,0.03605535,196.26,196.25,5.0948]
[1739403503036,19.10076536,196.32,196.28,5.0938]
[1739403503241,19.10076536,196.32,196.22,3.1525]
[1739403503933,14.00776536,196.32,196.22,3.1525]
[1739403504237,0.03255592,196.29,196.25,0.03366593]
[1739403505038,0.03255592,196.29,196.28,5.094]
[1739403507037,0.03255592,196.29,196.27,5.0941]
[1739403507240,0.03255592,196.29,196.25,0.03366593]
[1739403508332,5.0941,196.28,196.25,0.03366593]
[1739403508732,0.03255592,196.29,196.25,0.03366593]
[1739403508931,5.0941,196.28,196.25,5.12836593]
[1739403509137,0.03255592,196.29,196.25,0.03366593]
[1739403509941,0.03255592,196.29,196.28,5.094]
[1739403511941,0.03255592,196.29,196.25,0.03366593]
[1739403512538,5.0941,196.28,196.25,0.03366593]
[1739403512744,0.03255592,196.29,196.25,0.03366593]
[1739403513344,0.03255592,196.29,196.28,5.094]
[1739403514147,9.00623513,196.29,196.25,0.03366593]
[1739403514543,9.00623513,196.29,196.26,5.0945]
[1739403514745,8.97367921,196.27,196.25,0.03366593]
[1739403515748,14.06133525,196.29,196.25,0.03366593]
[1739403516849,5.0944,196.27,196.25,0.03366593]
[1739403518347,5.0945,196.26,196.25,0.03366593]
[1739403518651,19.12327933,196.26,196.25,0.03366593]
[1739403518850,5.0957,196.22,196.17,3.2528]
[1739403519249,14.02877933,196.26,196.18,5.0964]
[1739403519449,5.0958,196.21,196.18,5.0964]
[1739403519855,5.13312315,196.21,196.18,5.12878216]
[1739403520049,0.03732315,196.21,196.18,5.12878216]
[1739403520554,0.03732315,196.21,196.18,0.03238216]
[1739403520754,0.03732315,196.21,196.19,5.0963]
[1739403521546,0.03732315,196.21,196.2,5.0961]
[1739403523954,14.02877933,196.3,196.18,0.03238216]
[1739403524154,14.02877933,196.3,196.24,5.0949]
[1739403524457,14.02877933,196.3,196.16,14.02877933]
[1739403524656,14.02877933,196.3,196.26,5.0945]
[1739403525052,14.02877933,196.3,196.26,5.13045033]
[1739403525252,14.06452082,196.3,196.26,0.03595033]
[1739403526759,0.03574149,196.3,196.26,0.03595033]
[1739403527258,0.03574149,196.3,196.28,5.0939]
[1739403527658,0.03574149,196.3,196.26,0.03595033]
[1739403527959,0.03574149,196.3,196.27,5.094]
[1739403528161,0.03574149,196.3,196.26,0.03595033]
[1739403530462,0.03574149,196.3,196.28,5.0938]
[1739403532861,5.12924149,196.3,196.27,5.0942]
[1739403534459,0.03574149,196.3,196.26,0.03595033]
[1739403535065,0.03574149,196.3,196.28,5.0938]
[1739403535567,0.03574149,196.3,196.29,5.0937]
[1739403540870,4.149e-05,196.3,196.29,5.0937]
[1739403542468,4.149e-05,196.3,196.29,6.6828]
[1739403543774,8.97191251,196.43,196.4,5.0909]
[1739403543965,8.97191251,196.43,196.36,8.97191251]
[1739403544171,8.97191251,196.43,196.41,5.0906]
[1739403544373,8.97191251,196.43,196.37,1.5171]
[1739403544772,8.97191251,196.43,196.42,5.0904]
[1739403544968,0.03634885,196.42,196.38,9.00565878]
[1739403545169,4.885e-05,196.42,196.4,8.97191251]
[1739403545370,8.97191251,196.45,196.42,5.0904]
[1739403545576,14.00118336,196.48,196.42,5.0904]
[1739403546077,14.00118336,196.45,196.38,1.5561]
[1739403546476,0.0354475,196.43,196.42,5.0904]
[1739403546677,14.00118336,196.48,196.42,5.0904]
[1739403546976,0.03891841,196.44,196.4,0.03612557]
[1739403547377,0.03891841,196.44,196.42,5.0903]
[1739403547777,0.03891841,196.44,196.4,0.03612557]
[1739403547981,0.03891841,196.44,196.43,5.0901]
[1739403548479,14.00118336,196.51,196.4,0.03612557]
[1739403548683,14.00118336,196.54,196.41,14.00118336]
[1739403549583,14.00118336,196.54,196.5,5.0881]
[1739403549878,19.08848336,196.54,196.49,5.0884]
[1739403550080,19.11478608,196.54,196.5,0.03564139]
[1739403550281,0.02630272,196.54,196.5,0.03564139]
[1739403550481,0.02630272,196.54,196.51,5.0878]
[1739403550885,0.02630272,196.54,196.5,0.03564139]
[1739403552785,5.11380272,196.54,196.5,0.03564139]
[1739403553381,0.02630272,196.54,196.5,0.03564139]
[1739403553587,14.02748608,196.54,196.5,0.03564139]
[1739403555187,19.11498608,196.54,196.5,0.03564139]
[1739403556492,5.0875,196.53,196.5,0.03564139]
[1739403556791,14.02748608,196.54,196.5,0.03564139]
[1739403557390,5.0876,196.53,196.5,0.03564139]
[1739403557893,5.088,196.51,196.5,0.03564139]
[1739403558691,14.02748608,196.54,196.5,0.03564139]
[1739403559793,5.088,196.52,196.5,0.03564139]
[1739403560195,5.088,196.51,196.5,0.03564139]
[1739403561896,19.08918336,196.51,196.5,0.03564139]
[1739403564099,14.00118336,196.51,196.5,0.03564139]
[1739403565294,19.08918336,196.51,196.5,0.03564139]
[1739403565904,5.0893,196.46,196.41,3.0584]
[1739403566296,5.0893,196.46,196.42,5.0903]
[1739403566602,14.00118336,196.48,196.42,5.0903]
[1739403566804,5.0898,196.45,196.42,5.0903]
[1739403567000,14.00118336,196.48,196.41,1.5125]
[1739403567303,0.03883863,196.45,196.42,0.03537478]
[1739403567599,0.03883863,196.45,196.43,5.0899]
[1739403567804,0.03883863,196.45,196.42,0.03537478]
[1739403569009,14.04002199,196.45,196.42,0.03537478]
[1739403569400,5.0901,196.43,196.42,0.03537478]
[1739403569596,14.05537147,196.43,196.42,0.03537478]
[1739403571007,5.0912,196.39,196.35,50.27141952]
[1739403571206,8.96527147,196.38,196.35,50.27141952]
[1739403571508,8.96527147,196.38,196.36,5.0919]
[1739403571807,5.0911,196.4,196.36,5.0919]
[1739403572200,5.0912,196.39,196.36,5.1297674]
[1739403572706,0.03379461,196.4,196.36,0.0378674]
[1739403572899,14.01049776,196.39,196.36,0.0378674]
[1739403573706,5.0917,196.37,196.36,0.0378674]
[1739403574305,14.01049776,196.39,196.28,3.1059]
[1739403574507,5.093,196.32,196.25,1.5266]
[1739403574805,14.01049776,196.34,196.25,1.5266]
[1739403575010,14.01049776,196.34,196.3,5.0932]
[1739403575607,5.0927,196.33,196.3,0.03868507]
[1739403577709,5.0932,196.31,196.3,0.03868507]
[1739403577907,19.10369776,196.31,196.3,0.03868507]
[1739403589512,14.01049776,196.31,196.3,0.03868507]
[1739403589712,5.0929,196.33,196.3,5.13208507]
[1739403590418,0.03563798,196.34,196.3,0.03868507]
[1739403590618,0.03563798,196.34,196.32,5.0928]
[1739403591218,5.12813798,196.34,196.32,5.0928]
[1739403591724,5.12813798,196.34,196.3,0.03868507]
[1739403591925,5.0927,196.33,196.3,5.13198507]
[1739403592426,5.0932,196.31,196.3,0.03868507]
[1739403593721,14.06694558,196.31,196.3,0.03868507]
[1739403595631,19.12006887,196.31,196.3,0.03868507]
[1739403596024,14.02686887,196.31,196.3,0.03868507]
[1739403597029,19.12006887,196.31,196.3,0.03868507]
[1739403598532,5.0948,196.25,196.22,5.0955]
[1739403599533,5.13399536,196.25,196.22,5.13388451]
[1739403599735,0.03919536,196.25,196.22,0.03838451]
[1739403599933,0.03919536,196.25,196.23,5.0951]
[1739403600635,0.03919536,196.25,196.22,0.03838451]
[1739403601031,0.03919536,196.25,196.23,5.0952]
[1739403601337,0.03919536,196.25,196.22,0.03838451]
[1739403601839,0.03919536,196.25,196.24,5.095]
[1739403602838,19.12036887,196.31,196.28,5.0939]
[1739403603738,14.02686887,196.31,196.21,3.0959]
[1739403604038,5.0937,196.3,196.21,3.0959]
[1739403604237,5.0937,196.3,196.24,0.03788603]
[1739403605141,5.0937,196.3,196.27,5.0941]
[1739403605637,19.15531105,196.31,196.24,0.03788603]
[1739403606243,19.15531105,196.31,196.27,5.094]
[1739403607437,19.15531105,196.31,196.3,5.0935]
[1739403607438,0.03504218,196.31,196.3,5.0935]
[1739403608140,0.03504218,196.31,196.29,0.03454415]
[1739403608539,0.03504218,196.31,196.3,5.0935]
[1739403610142,0.03504218,196.31,196.29,0.03454415]
[1739403610340,5.12834218,196.31,196.29,0.03454415]
[1739403611343,0.03504218,196.31,196.29,5.12824415]
[1739403611649,0.03504218,196.31,196.29,0.03454415]
[1739403612343,0.03504218,196.31,196.3,5.0935]
[1739403613343,19.11876887,196.37,196.33,5.0925]
[1739403614446,19.15287021,196.37,196.33,0.03261581]
[1739403614645,19.15287021,196.37,196.34,5.0924]
[1739403615447,14.06097021,196.37,196.33,0.03261581]
[1739403615747,8.96875849,196.36,196.35,5.0921]
[1739403616948,14.06065849,196.36,196.33,5.12511581]
[1739403617143,8.96875849,196.36,196.33,0.03261581]
[1739403617349,0.03410134,196.37,196.33,0.03261581]
[1739403617350,8.96875849,196.34,196.33,0.03261581]
[1739403619046,14.06115849,196.34,196.33,0.03261581]
[1739403624653,8.96875849,196.34,196.33,0.03261581]
[1739403624853,8.96875849,196.36,196.33,0.03261581]
[1739403625054,8.96875849,196.36,196.33,5.12531581]
[1739403625457,8.96875849,196.34,196.33,0.03261581]
[1739403626154,14.06115849,196.34,196.33,0.03261581]
[1739403626757,8.96875849,196.34,196.25,1.5043]
[1739403627061,8.96875849,196.27,196.25,5.0947]
[1739403628159,8.96875849,196.27,196.24,0.03873049]
[1739403628752,14.06325849,196.27,196.24,5.13373049]
[1739403628957,8.96875849,196.27,196.24,5.13373049]
[1739403629159,8.96875849,196.25,196.24,0.03873049]
[1739403629658,14.06355849,196.25,196.24,0.03873049]
[1739403631660,8.96875849,196.25,196.24,0.03873049]
[1739403636365,14.06355849,196.25,196.24,0.03873049]
[1739403636962,8.96875849,196.25,196.24,0.03873049]
[1739403638266,14.06355849,196.25,196.24,0.03873049]
[1739403653472,5.0959,196.21,196.18,5.0966]
[1739403653669,14.06465849,196.21,196.18,5.0966]
[1739403653870,8.96875849,196.21,196.19,5.0963]
[1739403654275,8.96875849,196.21,196.16,8.96875849]
[1739403654574,8.96875849,196.21,196.18,0.03274825]
[1739403655476,14.06455849,196.21,196.18,5.12914825]
[1739403657778,5.0961,196.2,196.18,5.12914825]
[1739403657976,5.0961,196.2,196.18,0.03274825]
[1739403659778,8.96875849,196.21,196.18,0.03274825]
[1739403660077,14.06465849,196.21,196.18,5.12934825]
[1739403661079,5.13241153,196.22,196.2,5.0961]
[1739403661275,0.03681153,196.22,196.18,0.03274825]
[1739403661685,0.03681153,196.22,196.18,9.00150674]
[1739403662179,0.03681153,196.22,196.21,5.0958]
[1739403670094,5.13241153,196.22,196.19,5.0962]
[1739403670293,8.96875849,196.21,196.19,5.0962]
[1739403670592,5.0961,196.2,196.18,0.03274825]
[1739403671186,8.96875849,196.19,196.18,0.03274825]
[1739403676495,14.06505849,196.19,196.18,0.03274825]
[1739403677696,5.0975,196.15,196.08,10.62275849]
[1739403677894,8.96875849,196.14,196.08,10.62275849]
[1739403678192,8.96875849,196.14,196.11,5.0983]
[1739403678497,8.96875849,196.14,196.08,1.654]
[1739403678691,8.96875849,196.12,196.08,1.654]
[1739403678893,8.96875849,196.12,196.1,0.03655346]
[1739403679099,8.96875849,196.12,196.08,1.654]
[1739403679304,5.0984,196.11,196.09,0.03801133]
[1739403679594,8.96875849,196.1,196.09,0.03801133]
[1739403680794,14.06745849,196.1,196.09,0.03801133]
[1739403681196,8.96875849,196.1,196.09,0.03801133]
[1739403682398,9.00384372,196.12,196.09,0.03801133]
[1739403683202,9.00384372,196.12,196.1,5.0985]
[1739403684098,9.00384372,196.12,196.09,0.03801133]
[1739403686202,9.00384372,196.12,196.09,5.13691133]
[1739403686601,9.00384372,196.12,196.09,0.03801133]
[1739403686804,0.03508523,196.12,196.09,0.03801133]
[1739403687997,0.03508523,196.12,196.11,5.0984]
[1739403688205,8.96875849,196.18,196.1,8.96875849]
[1739403688903,8.96875849,196.2,196.12,8.96875849]
[1739403689102,8.96875849,196.2,196.13,1.6432]
[1739403689407,0.03331858,196.18,196.15,0.03709152]
[1739403691003,9.00207707,196.18,196.15,0.03709152]
[1739403691406,9.00207707,196.18,196.15,5.13429152]
[1739403691595,9.00207707,196.18,196.15,0.03709152]
[1739403691798,9.00207707,196.18,196.15,5.13429152]
[1739403692301,9.00207707,196.18,196.15,0.03709152]
[1739403693503,0.03331858,196.18,196.15,0.03709152]
[1739403694002,0.03331858,196.18,196.17,5.0969]
[1739403694998,9.00207707,196.18,196.15,5.13439152]
[1739403695301,9.00207707,196.18,196.15,0.03709152]
[1739403695705,9.00207707,196.18,196.15,5.13449152]
[1739403695906,9.00207707,196.18,196.15,0.03709152]
[1739403696305,9.00207707,196.18,196.15,5.13429152]
[1739403696508,8.96875849,196.16,196.15,0.03709152]
[1739403703011,14.06585849,196.16,196.15,0.03709152]
[1739403704213,8.96875849,196.16,196.09,5.0989]
[1739403704412,8.96875849,196.11,196.04,8.96875849]
[1739403704816,8.96875849,196.13,196.06,8.96875849]
[1739403705106,8.96875849,196.15,196.1,8.96875849]
[1739403705312,8.96875849,196.15,196.13,5.0976]
[1739403705513,0.03919774,196.14,196.13,5.0976]
[1739403705709,0.03919774,196.14,196.12,5.0979]
[1739403705911,0.03919774,196.14,196.11,0.0392134]
[1739403706217,0.03919774,196.14,196.12,5.0982]
[1739403706614,0.03919774,196.14,196.11,0.0392134]
[1739403707714,0.03919774,196.14,196.11,5.1374134]
[1739403709515,0.03919774,196.14,196.13,5.0979]
[1739403710817,0.03919774,196.14,196.12,5.0981]
[1739403711318,0.03919774,196.14,196.13,5.0979]
[1739403713818,5.13689774,196.14,196.11,5.1376134]
[1739403714314,0.03919774,196.14,196.11,5.1376134]
[1739403714719,0.03919774,196.14,196.11,0.0392134]
[1739403714919,0.03919774,196.14,196.12,5.0982]
[1739403715815,0.03919774,196.14,196.11,0.0392134]
[1739403716020,0.03919774,196.14,196.13,5.0979]
[1739403719932,0.03919774,196.14,196.12,5.0981]
[1739403720129,0.03919774,196.14,196.11,0.0392134]
[1739403721029,5.13689774,196.14,196.11,5.1375134]
[1739403721629,0.03919774,196.14,196.11,5.1375134]
[1739403722121,0.03919774,196.14,196.12,5.0981]
[1739403723524,0.03919774,196.14,196.12,5.0982]
[1739403724932,0.03919774,196.14,196.13,5.0979]
[1739403726827,0.03919774,196.14,196.11,0.0392134]
[1739403727032,0.03919774,196.14,196.12,5.0981]
[1739403730732,0.03919774,196.14,196.13,5.0979]
[1739403733032,8.96875849,196.19,196.12,8.96875849]
[1739403733233,8.96875849,196.19,196.17,5.0967]
[1739403734538,8.96875849,196.19,196.16,0.03536032]
[1739403734739,8.96875849,196.19,196.16,5.13236032]
[1739403735334,14.06505849,196.19,196.16,0.03536032]
[1739403739544,0.03892248,196.2,196.16,0.03536032]
[1739403740043,0.03892248,196.2,196.16,9.00411881]
[1739403740235,0.03892248,196.2,196.19,5.0963]
[1739403740440,0.03892248,196.2,196.16,0.03536032]
[1739403741142,8.96875849,196.19,196.16,0.03536032]
[1739403741744,8.96875849,196.17,196.16,0.03536032]
[1739403743340,14.06565849,196.17,196.16,0.03536032]
[1739403743644,8.96875849,196.17,196.16,0.03536032]
[1739403743847,14.06565849,196.17,196.16,0.03536032]
[1739403746748,8.96875849,196.17,196.16,0.03536032]
[1739403750651,0.03892248,196.2,196.16,0.03536032]
[1739403750859,0.03892248,196.2,196.17,5.0966]
[1739403751251,5.13512248,196.2,196.16,5.13246032]
[1739403751855,0.03892248,196.2,196.16,0.03536032]
[1739403752052,0.03892248,196.2,196.17,5.0967]
[1739403754659,8.96875849,196.19,196.16,0.03536032]
[1739403754861,8.96875849,196.17,196.16,0.03536032]
[1739403755561,14.06565849,196.17,196.16,0.03536032]
[1739403759962,8.96875849,196.17,196.16,0.03536032]
[1739403760162,8.96875849,196.19,196.16,0.03536032]
[1739403760363,0.03892248,196.2,196.19,5.0963]
[1739403762566,8.96875849,196.25,196.24,5.095]
[1739403762770,8.96875849,196.25,196.18,8.96875849]
[1739403763159,8.96875849,196.25,196.22,5.0953]
[1739403763464,14.06305849,196.27,196.18,8.96875849]
[1739403763763,0.03232995,196.25,196.23,5.0951]
[1739403764664,0.03232995,196.25,196.24,5.095]
[1739403766171,0.03232995,196.25,196.23,5.0953]
[1739403767764,0.03232995,196.25,196.22,5.13122032]
[1739403768266,0.03232995,196.25,196.22,0.03572032]
[1739403769068,0.03232995,196.25,196.23,5.0953]
[1739403769269,5.0951,196.24,196.22,0.03572032]
[1739403771874,9.00108844,196.25,196.22,0.03572032]
[1739403772071,14.06405849,196.23,196.22,0.03572032]
[1739403784381,5.0967,196.18,196.14,5.0974]
[1739403784583,14.06545849,196.18,196.14,5.0974]
[1739403785378,14.10260804,196.18,196.14,5.13589623]
[1739403785891,0.03714955,196.18,196.16,5.0971]
[1739403786976,0.03714955,196.18,196.14,0.03849623]
[1739403786977,5.097,196.17,196.14,0.03849623]
[1739403787175,9.00590804,196.18,196.14,0.03849623]
[1739403788479,5.0971,196.17,196.14,0.03849623]
[1739403789678,5.0969,196.17,196.14,0.03849623]
[1739403791984,14.10260804,196.18,196.14,5.13599623]
[1739403792284,0.03714955,196.18,196.14,0.03849623]
[1739403792887,0.03714955,196.18,196.16,5.0969]
[1739403793385,5.13394955,196.18,196.14,5.13599623]
[1739403793581,5.13394955,196.18,196.14,0.03849623]
[1739403795186,0.03714955,196.18,196.15,5.0974]
[1739403796179,5.13384955,196.18,196.15,5.0974]
[1739403797580,5.13384955,196.18,196.14,0.03849623]
[1739403797782,9.00590804,196.18,196.14,0.03849623]
[1739403798789,9.00590804,196.18,196.14,5.13589623]
[1739403799387,9.00590804,196.18,196.14,0.03849623]
[1739403799780,14.10270804,196.18,196.15,5.0972]
[1739403800291,9.00590804,196.18,196.15,5.0972]
[1739403801189,14.10250804,196.18,196.15,5.0972]
[1739403805392,9.00590804,196.18,196.14,0.03849623]
[1739403806093,0.03714955,196.18,196.14,0.03849623]
[1739403806495,0.03714955,196.18,196.17,5.0969]
[1739403810100,8.96875849,196.22,196.16,8.96875849]
[1739403810301,8.96875849,196.22,196.2,5.0959]
[1739403810700,8.96875849,196.24,196.2,5.0959]
[1739403810999,14.06395849,196.24,196.2,5.0959]
[1739403811303,14.10179044,196.24,196.2,5.13272185]
[1739403812102,5.0953,196.23,196.2,5.13272185]
[1739403812403,5.0953,196.23,196.2,0.03682185]
[1739403813403,8.96875849,196.22,196.2,0.03682185]
[1739403816009,5.0958,196.21,196.2,0.03682185]
[1739403817798,14.06435849,196.22,196.2,0.03682185]
[1739403819010,5.0958,196.21,196.2,0.03682185]
[1739403819411,8.96875849,196.22,196.2,0.03682185]
[1739403819713,14.06435849,196.22,196.2,0.03682185]
[1739403822314,8.96875849,196.22,196.2,0.03682185]
[1739403822910,14.06445849,196.22,196.2,0.03682185]
[1739403823315,8.96875849,196.22,196.2,0.03682185]
[1739403823511,9.00659044,196.24,196.2,0.03682185]
[1739403824207,14.10169044,196.24,196.21,5.0958]
[1739403825718,14.10169044,196.24,196.2,5.13292185]
[1739403828421,5.0953,196.23,196.2,5.13292185]
[1739403829421,9.00659044,196.24,196.2,5.13292185]
[1739403829620,14.10169044,196.24,196.2,5.13292185]
[1739403832027,14.10169044,196.24,196.2,0.03682185]
[1739403832226,14.10169044,196.24,196.21,5.0958]
[1739403835022,9.00659044,196.24,196.2,0.03682185]
[1739403835227,5.0954,196.23,196.2,5.13292185]
[1739403835527,9.00659044,196.24,196.2,5.13292185]
[1739403835528,8.96875849,196.21,196.2,0.03682185]
[1739403835830,14.06455849,196.21,196.2,0.03682185]
[1739403836627,8.96875849,196.21,196.2,0.03682185]
[1739403837229,14.06455849,196.21,196.2,0.03682185]
[1739403840332,8.96875849,196.21,196.2,0.03682185]
[1739403841333,14.06455849,196.21,196.2,0.03682185]
[1739403843441,8.96875849,196.21,196.2,0.03682185]
[1739403845338,8.96875849,196.23,196.2,0.03682185]
[1739403846135,8.96875849,196.23,196.21,5.0956]
[1739403852242,8.96875849,196.23,196.2,0.03682185]
[1739403852442,8.96875849,196.23,196.22,5.0956]
[1739403855744,0.03783195,196.24,196.2,0.03682185]
[1739403855944,0.03783195,196.24,196.23,5.0953]
[1739403858241,33.9114084,196.31,196.22,8.96875849]
[1739403858242,8.96875849,196.31,196.22,8.96875849]
[1739403858446,8.96875849,196.33,196.27,8.96875849]
[1739403859350,0.03439906,196.32,196.28,0.0352598]
[1739403859748,0.03439906,196.32,196.29,5.0937]
[1739403860451,0.03439906,196.32,196.3,5.0933]
[1739403860843,8.96875849,196.31,196.28,0.0352598]
[1739403861048,8.96875849,196.31,196.29,5.0936]
[1739403861253,8.96875849,196.31,196.28,0.0352598]
[1739403861553,0.03439906,196.32,196.3,5.0933]
[1739403861754,0.03439906,196.32,196.28,0.0352598]
[1739403862153,0.03439906,196.32,196.31,5.0932]
[1739403866857,8.96875849,196.33,196.28,0.0352598]
[1739403867150,56.24176222,196.47,196.34,8.96875849]
[1739403867151,8.96875849,196.41,196.34,8.96875849]
[1739403867353,8.96875849,196.45,196.38,8.96875849]
[1739403867855,65.21052071,196.47,196.4,8.96875849]
[1739403868049,65.21052071,196.47,196.4,9.00285862]
[1739403868050,0.03567074,196.43,196.4,9.00285862]
[1739403868256,0.03567074,196.43,196.42,8.96875849]
[1739403869260,0.03567074,196.43,196.4,9.00285862]
[1739403870260,8.96875849,196.51,196.42,8.96875849]
[1739403870453,8.96875849,196.51,196.44,8.96875849]
[1739403871058,8.96875849,196.49,196.44,8.96875849]
[1739403871460,5.0893,196.47,196.46,0.03233964]
[1739403873063,14.05805849,196.47,196.46,0.03233964]
[1739403873263,14.05805849,196.47,196.46,3.964e-05]
[1739403874262,5.0893,196.47,196.46,3.964e-05]
[1739403875463,14.05805849,196.47,196.46,3.964e-05]
[1739403877465,5.0893,196.47,196.46,3.964e-05]
[1739403877662,5.12404713,196.48,196.46,3.964e-05]
[1739403877861,0.03514713,196.48,196.46,3.964e-05]
[1739403878359,5.0891,196.47,196.46,3.964e-05]
[1739403881260,0.03514713,196.48,196.46,3.964e-05]
[1739403884166,5.12414713,196.48,196.46,3.964e-05]
[1739403884469,0.03514713,196.48,196.46,3.964e-05]
[1739403884866,5.0891,196.47,196.46,3.964e-05]
[1739403889474,0.03514713,196.48,196.46,3.964e-05]
[1739403889669,0.03514713,196.48,196.46,8.96879813]
[1739403892174,0.03514713,196.48,196.46,14.05809813]
[1739403892774,0.03514713,196.48,196.46,3.964e-05]
[1739403892775,5.12404713,196.48,196.46,3.964e-05]
[1739403894075,0.03514713,196.48,196.46,3.964e-05]
[1739403895766,5.0891,196.47,196.46,3.964e-05]
[1739403896974,5.12404713,196.48,196.46,3.964e-05]
[1739403899076,5.0891,196.47,196.46,3.964e-05]
[1739403900377,5.12404713,196.48,196.46,3.964e-05]
[1739403901073,0.03514713,196.48,196.46,3.964e-05]
[1739403901376,8.96875849,196.47,196.46,3.964e-05]
[1739403901875,14.05785849,196.47,196.46,3.964e-05]
[1739403915688,5.0891,196.47,196.46,3.964e-05]
[1739403915885,0.03514713,196.48,196.46,8.96879813]
[1739403916291,0.03514713,196.48,196.47,5.0891]
[1739403919490,0.03514713,196.48,196.46,14.05789813]
[1739403919689,0.03514713,196.48,196.46,8.96879813]
[1739403919996,5.0875,196.54,196.49,5.0884]
[1739403920197,5.0875,196.54,196.49,14.05715849]
[1739403920794,5.0875,196.54,196.5,5.0883]
[1739403920991,47.67988303,196.57,196.51,8.96875849]
[1739403921296,8.96875849,196.59,196.54,5.0872]
[1739403921493,8.96875849,196.61,196.54,5.0872]
[1739403921695,5.0862,196.59,196.55,0.03692729]
[1739403922195,5.0864,196.58,196.55,0.03692729]
[1739403922397,8.96875849,196.61,196.55,0.03692729]
[1739403923203,5.0864,196.58,196.55,0.03692729]
[1739403923605,8.96875849,196.59,196.55,0.03692729]
[1739403923805,5.0867,196.56,196.55,0.03692729]
[1739403926608,14.05525849,196.57,196.55,0.03692729]
[1739403927107,8.96875849,196.57,196.55,0.03692729]
[1739403927408,5.0867,196.56,196.55,0.03692729]
[1739403932911,8.96875849,196.57,196.47,1.5964]
[1739403933111,8.96875849,196.48,196.41,8.96875849]
[1739403933310,8.96875849,196.46,196.4,1.6353]
[1739403933510,8.96875849,196.44,196.4,1.6353]
[1739403934010,5.0896,196.45,196.4,1.6353]
[1739403934213,0.03414312,196.44,196.4,1.67359268]
[1739403934412,0.03414312,196.44,196.4,6.76439268]
[1739403934917,5.12404312,196.44,196.4,1.67359268]
[1739403935715,5.0902,196.43,196.4,1.67359268]